bitfinex/quotes_BTCUSD_20220304
["timestamp","ask_amount","ask_price","bid_price","bid_amount"]
[1646421684680,0.00460684,40258.0,40248.0,0.18002947]
[1646421684881,0.14450546,40261.0,40248.0,0.18002947]
[1646421685081,0.062179,40257.0,40248.0,0.18002947]
[1646421685283,0.25236706,40259.0,40248.0,0.18002947]
[1646421685485,0.124342,40255.0,40247.0,0.27896945]
[1646421685784,0.13603075,40258.0,40247.0,0.27896945]
[1646421686040,0.062175,40260.0,40247.0,0.27896945]
[1646421686240,0.025,40260.0,40247.0,0.27896945]
[1646421686442,0.05,40261.0,40247.0,0.27896945]
[1646421686638,0.04108823,40261.0,40255.0,0.18929747]
[1646421686838,0.06608823,40261.0,40255.0,0.18929747]
[1646421687041,0.062173,40261.0,40257.0,0.28478963]
[1646421687342,0.24226892,40262.0,40257.0,0.28478963]
[1646421687343,0.025,40262.0,40257.0,0.28478963]
[1646421687640,0.310898,40264.0,40257.0,0.28478963]
[1646421687840,0.062171,40260.0,40257.0,0.28478963]
[1646421688044,0.122411,40264.0,40257.0,0.28478963]
[1646421688247,0.062173,40261.0,40257.0,0.28478963]
[1646421688442,0.025,40264.0,40257.0,0.28478963]
[1646421688642,0.025,40267.0,40264.0,0.3232218]
[1646421688843,0.248687,40271.0,40264.0,0.3232218]
[1646421688844,0.062159,40269.0,40264.0,0.3232218]
[1646421689041,0.060163,40271.0,40266.0,0.16287044]
[1646421689241,0.124317,40268.0,40264.0,0.3232218]
[1646421689442,0.00948,40271.0,40264.0,0.3232218]
[1646421689679,0.082713,40273.0,40252.0,0.6]
[1646421689878,0.14089604,40274.0,40252.0,0.6]
[1646421689879,0.04860904,40274.0,40252.0,0.6]
[1646421690080,0.30286991,40275.0,40253.0,1.35]
[1646421690280,0.30286991,40275.0,40264.0,0.1743633]
[1646421690479,0.025,40275.0,40255.0,0.22105166]
[1646421690684,0.88195214,40279.0,40256.0,0.3]
[1646421690685,0.062156,40265.0,40256.0,0.3]
[1646421690879,0.73450294,40279.0,40257.0,0.3]
[1646421691080,0.3707568,40279.0,40259.0,1.35]
[1646421691280,0.33812275,40281.0,40260.0,0.25347749]
[1646421691479,0.32211082,40279.0,40270.0,0.17117359]
[1646421691681,0.33357082,40279.0,40269.0,0.21929266]
[1646421692077,0.19572682,40279.0,40269.0,0.21929266]
[1646421692279,0.025,40279.0,40269.0,0.21929266]
[1646421692480,0.186469,40273.0,40269.0,0.21929266]
[1646421692781,0.06215,40274.0,40268.0,0.28507206]
[1646421692782,0.048619,40274.0,40268.0,0.28507206]
[1646421693080,0.048619,40274.0,40259.0,0.15]
[1646421693081,0.025,40274.0,40259.0,0.15]
[1646421693283,0.01317627,40277.0,40260.0,0.3]
[1646421693532,0.124315,40267.0,40257.0,0.15]
[1646421693733,0.23764918,40279.0,40269.0,0.28698557]
[1646421693934,0.062152,40276.0,40269.0,0.28698557]
[1646421694334,0.02726543,40279.0,40269.0,0.28698557]
[1646421694533,0.24799225,40280.0,40266.0,0.19580825]
[1646421694736,0.26051409,40280.0,40271.0,0.29785804]
[1646421694936,0.06051409,40280.0,40271.0,0.29785804]
[1646421695139,0.00015873,40275.0,40271.0,0.29785804]
[1646421695336,0.11091273,40276.0,40271.0,0.29785804]
[1646421695540,0.062151,40276.0,40272.0,0.53987748]
[1646421695738,0.8502825,40291.0,40273.0,1.35]
[1646421695739,0.4815,40288.0,40273.0,1.35]
[1646421695941,0.28213479,40288.0,40274.0,1.35]
[1646421696141,0.50441228,40292.0,40276.0,1.25]
[1646421696142,0.34960776,40292.0,40276.0,1.25]
[1646421696339,0.27574875,40298.0,40276.0,1.25]
[1646421696340,0.062129,40285.0,40276.0,1.25]
[1646421696540,0.025,40285.0,40280.0,0.26554354]
[1646421696737,0.184203,40293.0,40282.0,0.35]
[1646421696938,0.010771,40296.0,40286.0,0.17883464]
[1646421697195,0.00450193,40298.0,40281.0,0.3]
[1646421697386,0.06465437,40294.0,40281.0,0.3]
[1646421697587,0.062127,40288.0,40281.0,0.3]
[1646421697785,0.062127,40288.0,40279.0,0.24565184]
[1646421697989,0.062127,40288.0,40272.0,0.15]
[1646421697990,0.124251,40286.0,40272.0,0.15]
[1646421698186,0.16061843,40286.0,40275.0,0.18019631]
[1646421698385,0.062139,40282.0,40273.0,0.3]
[1646421698787,0.062139,40282.0,40277.0,0.2431816]
[1646421698788,0.124276,40282.0,40277.0,0.2431816]
[1646421699009,0.062139,40282.0,40277.0,0.2431816]
[1646421699384,0.062139,40282.0,40277.0,0.42169449]
[1646421699589,0.062139,40282.0,40278.0,0.3]
[1646421699889,0.062139,40282.0,40281.0,0.32395532]
[1646421703127,0.062139,40282.0,40276.0,0.07554357]
[1646421703328,0.087139,40282.0,40278.0,0.3]
[1646421703525,0.087139,40282.0,40276.0,0.07554357]
[1646421703729,0.087139,40282.0,40277.0,0.3]
[1646421703730,0.025,40282.0,40277.0,0.3]
[1646421703927,0.06228287,40285.0,40277.0,0.50304543]
[1646421704127,0.06228287,40285.0,40280.0,0.05746418]
[1646421704329,0.00015887,40285.0,40281.0,0.3]
[1646421704529,0.025,40293.0,40281.0,0.05]
[1646421704800,0.00015875,40285.0,40281.0,0.05]
[1646421704999,0.00015875,40285.0,40277.0,0.20604543]
[1646421705198,0.00015875,40285.0,40277.0,0.003]
[1646421705697,0.149254,40287.0,40277.0,0.003]
[1646421705898,0.062134,40284.0,40277.0,0.003]
[1646421706201,0.424269,40283.0,40276.0,0.07554357]
[1646421706796,0.124269,40283.0,40276.0,0.07554357]
[1646421706998,0.124269,40283.0,40278.0,0.32068973]
[1646421707297,0.124269,40283.0,40276.0,0.07541]
[1646421707298,0.124269,40283.0,40276.0,0.07553522]
[1646421708099,0.124269,40283.0,40276.0,0.07541]
[1646421708298,0.124269,40283.0,40276.0,0.2461324]
[1646421708530,0.124269,40283.0,40276.0,0.07553522]
[1646421708731,0.124269,40283.0,40279.0,0.00096902]
[1646421709128,0.124269,40283.0,40281.0,0.25547273]
[1646421710638,0.062134,40284.0,40281.0,0.25547273]
[1646421711230,0.062134,40284.0,40279.0,0.00096902]
[1646421711630,0.057134,40284.0,40279.0,0.00096902]
[1646421712031,0.00015089,40285.0,40279.0,0.00096902]
[1646421712882,0.025,40286.0,40280.0,0.15]
[1646421713083,0.00015089,40285.0,40283.0,0.36316924]
[1646421713286,0.00015089,40285.0,40284.0,0.15]
[1646421713686,0.00015089,40285.0,40284.0,0.52139]
[1646421713885,0.00015089,40285.0,40284.0,0.15]
[1646421714089,0.087115,40291.0,40284.0,0.15]
[1646421714388,0.087115,40291.0,40289.0,0.28884359]
[1646421715298,0.8884,40301.0,40290.0,0.15]
[1646421715299,0.062105,40297.0,40290.0,0.15]
[1646421715589,0.13246648,40303.0,40295.0,0.24362308]
[1646421715590,0.01,40299.0,40295.0,0.24362308]
[1646421715790,0.00047779,40298.0,40295.0,0.24362308]
[1646421716029,0.00047779,40298.0,40291.0,0.15]
[1646421716229,0.00047779,40298.0,40296.0,0.30310245]
[1646421716635,0.01,40299.0,40296.0,0.30310245]
[1646421716833,0.01011947,40299.0,40296.0,0.30310245]
[1646421717233,0.01011947,40299.0,40298.0,0.20537284]
[1646421717430,0.07221947,40299.0,40298.0,0.20537284]
[1646421717632,0.07221947,40299.0,40296.0,0.30310245]
[1646421717933,0.0721,40299.0,40296.0,0.30310245]
[1646421718534,0.0721,40299.0,40298.0,0.2540861]
[1646421718831,0.0721,40299.0,40298.0,0.15]
[1646421719032,0.0721,40299.0,40296.0,0.30310245]
[1646421719235,0.0721,40299.0,40298.0,0.15]
[1646421719678,0.0721,40299.0,40297.0,0.00073261]
[1646421720281,0.26469586,40299.0,40297.0,0.00073261]
[1646421720678,0.0044993,40298.0,40297.0,0.00073261]
[1646421722078,0.0721,40299.0,40297.0,0.00073261]
[1646421722880,0.0721,40299.0,40298.0,0.15]
[1646421723533,0.0721,40299.0,40298.0,0.52139]
[1646421723739,0.01,40299.0,40298.0,1.00388185]
[1646421724538,0.00011951,40301.0,40299.0,1.61844423]
[1646421724742,0.00011951,40301.0,40300.0,0.1]
[1646421724939,0.10078512,40315.0,40300.0,0.1]
[1646421724940,0.54868512,40317.0,40300.0,0.62139]
[1646421725137,2.15604725,40320.0,40312.0,0.15]
[1646421725337,2.15604725,40320.0,40301.0,1.7]
[1646421725539,2.15604725,40320.0,40312.0,0.15]
[1646421726136,0.062077,40318.0,40312.0,0.15]
[1646421726441,0.062077,40318.0,40300.0,0.15]
[1646421726442,0.062073,40313.0,40301.0,0.15]
[1646421726639,0.062073,40313.0,40297.0,0.0009524]
[1646421726838,0.06209747,40311.0,40297.0,0.0009524]
[1646421727042,0.062097,40309.0,40297.0,0.0009524]
[1646421727282,0.0621,40306.0,40298.0,0.32698655]
[1646421727480,0.0621,40306.0,40299.0,0.3]
[1646421727481,0.062101,40304.0,40299.0,0.3]
[1646421727881,0.062101,40304.0,40297.0,0.0009524]
[1646421728484,0.062101,40304.0,40298.0,0.22330238]
[1646421728684,0.062101,40304.0,40297.0,0.0009524]
[1646421728883,0.124204,40301.0,40295.0,0.32810561]
[1646421729083,0.00015552,40303.0,40295.0,0.32810561]
[1646421729306,0.11657608,40314.0,40296.0,1.35]
[1646421729483,0.11657608,40314.0,40297.0,0.3]
[1646421729484,0.062094,40310.0,40297.0,0.3]
[1646421729684,0.062094,40310.0,40297.0,0.47098028]
[1646421729892,0.062094,40310.0,40297.0,0.3]
[1646421730085,0.062094,40310.0,40297.0,0.15]
[1646421730286,0.062095,40309.0,40297.0,0.14867633]
[1646421730484,0.062101,40304.0,40297.0,0.14867633]
[1646421732034,0.062101,40304.0,40299.0,0.2572933]
[1646421732235,0.062101,40304.0,40297.0,0.14867633]
[1646421732736,0.286271,40315.0,40297.0,0.14867633]
[1646421732737,0.062083,40307.0,40302.0,0.14867633]
[1646421732932,0.062083,40307.0,40303.0,0.3]
[1646421733133,0.062083,40307.0,40305.0,0.14867633]
[1646421733332,0.062083,40307.0,40305.0,0.42701501]
[1646421733532,0.062083,40307.0,40303.0,0.05]
[1646421733533,0.02590841,40307.0,40303.0,0.05]
[1646421733833,0.0385418,40316.0,40297.0,0.1]
[1646421734033,0.0385418,40316.0,40298.0,0.3]
[1646421734333,0.16761225,40310.0,40299.0,0.36355766]
[1646421734533,0.0385418,40316.0,40304.0,0.25907506]
[1646421734782,0.062086,40315.0,40304.0,0.25907506]
[1646421734981,0.062087,40314.0,40301.0,0.28468256]
[1646421735178,0.062083,40307.0,40301.0,0.28468256]
[1646421735979,0.062083,40307.0,40304.0,0.23505036]
[1646421736779,0.057083,40307.0,40304.0,0.23505036]
[1646421737580,0.057083,40307.0,40303.0,0.14867633]
[1646421737780,0.057083,40307.0,40301.0,0.28468256]
[1646421737982,0.057083,40307.0,40303.0,0.14867633]
[1646421738625,0.057083,40307.0,40304.0,0.56176143]
[1646421739026,0.057083,40307.0,40304.0,0.26176143]
[1646421739727,0.057083,40307.0,40303.0,0.00086078]
[1646421739930,0.057083,40307.0,40306.0,0.14867633]
[1646421740128,0.12417,40310.0,40306.0,0.14867633]
[1646421740528,0.062077,40311.0,40307.0,0.3]
[1646421740729,0.062077,40311.0,40309.0,0.2798543]
[1646421740927,0.062077,40311.0,40306.0,0.14867633]
[1646421742029,0.062077,40311.0,40310.0,0.25070877]
[1646421742888,0.124151,40315.0,40310.0,0.7707751]
[1646421742889,0.06207,40314.0,40310.0,0.7707751]
[1646421743087,0.06207,40314.0,40313.0,0.00248207]
[1646421743487,0.025,40318.0,40313.0,0.00248207]
[1646421743688,0.025,40318.0,40312.0,0.18242688]
[1646421743887,0.025,40318.0,40311.0,0.55501462]
[1646421744087,0.087066,40318.0,40311.0,0.55501462]
[1646421744288,0.087066,40318.0,40311.0,0.3]
[1646421744588,0.124154,40315.0,40310.0,0.14965772]
[1646421744794,0.124154,40315.0,40310.0,0.00098139]
[1646421744795,0.47666792,40314.0,40310.0,0.00098139]
[1646421744993,0.5,40313.0,40302.0,0.14867633]
[1646421745291,0.062096,40311.0,40299.0,0.28228291]
[1646421745487,0.062096,40311.0,40300.0,0.31754555]
[1646421745488,0.124183,40308.0,40300.0,0.31754555]
[1646421745687,0.194983,40308.0,40300.0,0.31754555]
[1646421745930,0.194983,40308.0,40300.0,0.46622188]
[1646421746529,0.194983,40308.0,40300.0,0.46607573]
[1646421746734,0.062092,40307.0,40300.0,0.64739066]
[1646421746929,0.062092,40307.0,40301.0,0.14867633]
[1646421747135,0.00014609,40313.0,40305.0,0.14867633]
[1646421747337,0.00014609,40313.0,40301.0,0.02455]
[1646421747534,0.00014609,40313.0,40309.0,0.14867633]
[1646421747730,0.211262,40317.0,40309.0,0.14867633]
[1646421748132,0.06221918,40313.0,40309.0,0.14867633]
[1646421748531,0.06221918,40313.0,40300.0,0.2788472]
[1646421748734,0.06221918,40313.0,40302.0,0.14867633]
[1646421748933,0.19256726,40312.0,40304.0,0.002]
[1646421749135,0.124184,40310.0,40304.0,0.002]
[1646421749334,0.3458,40309.0,40304.0,0.002]
[1646421749536,0.0458,40309.0,40304.0,0.002]
[1646421749781,0.107893,40309.0,40304.0,0.010745]
[1646421749980,0.00449806,40308.0,40304.0,0.010745]
[1646421750182,0.0458,40307.0,40304.0,0.008745]
[1646421750386,0.062103,40306.0,40304.0,0.008745]
[1646421750586,1.35,40304.0,40282.0,0.14867633]
[1646421750785,0.186328,40301.0,40283.0,0.7192243]
[1646421750982,0.186328,40301.0,40283.0,0.5]
[1646421750983,0.0458,40300.0,40283.0,0.5]
[1646421751183,0.05,40300.0,40283.0,0.5]
[1646421751384,0.05,40300.0,40282.0,0.3]
[1646421751385,0.062125,40290.0,40282.0,0.3]
[1646421751582,0.087125,40290.0,40278.0,0.3]
[1646421751784,0.107924,40289.0,40275.0,0.2287]
[1646421751983,0.19997107,40288.0,40278.0,0.22545783]
[1646421752184,0.0458,40287.0,40274.0,0.3]
[1646421752384,0.21659809,40285.0,40274.0,0.3]
[1646421752583,0.107935,40284.0,40274.0,0.62068843]
[1646421752786,0.062135,40281.0,40278.0,0.00014711]
[1646421752983,0.0458,40280.0,40278.0,0.00014711]
[1646421753184,0.0458,40280.0,40274.0,0.61583554]
[1646421753430,0.0708,40280.0,40277.0,0.25794453]
[1646421753830,0.0708,40280.0,40274.0,0.61583554]
[1646421754032,0.0708,40280.0,40272.0,0.14867633]
[1646421754833,0.0708,40280.0,40274.0,0.2773171]
[1646421755032,0.0708,40280.0,40272.0,0.14867633]
[1646421756339,0.0708,40280.0,40272.0,0.003745]
[1646421756340,0.062141,40279.0,40272.0,0.003745]
[1646421756533,0.062149,40277.0,40272.0,0.003745]
[1646421756733,0.0458,40276.0,40272.0,0.008745]
[1646421757476,0.0458,40276.0,40272.0,0.00889176]
[1646421757675,0.0458,40276.0,40272.0,0.00014676]
[1646421758079,0.16567264,40275.0,40272.0,0.00014676]
[1646421758278,0.062151,40273.0,40272.0,0.00014676]
[1646421758481,0.062151,40273.0,40271.0,0.011]
[1646421758482,0.107951,40273.0,40271.0,0.011]
[1646421758685,0.107951,40273.0,40270.0,0.00114677]
[1646421758878,0.170103,40273.0,40270.0,0.00114677]
[1646421759078,0.186467,40272.0,40270.0,0.00114677]
[1646421759278,0.0458,40271.0,40270.0,0.00114677]
[1646421759480,0.0458,40271.0,40270.0,4.677e-05]
[1646421759679,0.0458,40271.0,40268.0,0.002]
[1646421759680,1.35,40270.0,40268.0,0.002]
[1646421759881,1.35,40270.0,40261.0,0.001]
[1646421759882,0.12430713,40269.0,40261.0,0.001]
[1646421760081,0.24930713,40269.0,40261.0,0.001]
[1646421760282,0.24930713,40269.0,40258.0,0.0001]
[1646421760283,0.124357,40264.0,40258.0,0.0001]
[1646421760482,0.0458,40263.0,40255.0,0.001]
[1646421760685,0.27969452,40262.0,40255.0,0.001]
[1646421760933,0.107977,40261.0,40255.0,0.001]
[1646421761133,0.062176,40260.0,40255.0,0.001]
[1646421761336,0.38233954,40258.0,40255.0,0.001]
[1646421761538,0.0458,40257.0,40255.0,0.001]
[1646421762536,0.2955295,40256.0,40255.0,0.001]
[1646421762740,0.2955295,40256.0,40254.0,0.00114646]
[1646421762741,0.8035175,40256.0,40254.0,0.00114646]
[1646421762934,0.3,40255.0,40254.0,0.00114646]
[1646421763134,0.124377,40253.0,40238.0,0.14867633]
[1646421763339,0.124377,40253.0,40238.0,0.33616182]
[1646421763340,0.3458,40252.0,40238.0,0.33616182]
[1646421763634,0.0458,40252.0,40242.0,0.24938883]
[1646421763836,0.1458,40252.0,40242.0,0.24938883]
[1646421764236,0.0458,40252.0,40242.0,0.24938883]
[1646421764437,0.107987,40252.0,40242.0,0.24938883]
[1646421765493,0.107987,40252.0,40248.0,0.14867633]
[1646421765996,0.107987,40252.0,40244.0,0.16276108]
[1646421765997,0.107987,40252.0,40251.0,0.18353618]
[1646421766494,0.107927,40252.0,40251.0,0.01]
[1646421767396,0.107927,40252.0,40251.0,0.018745]
[1646421768832,0.107927,40252.0,40251.0,0.26840494]
[1646421771030,0.107927,40252.0,40251.0,0.01167222]
[1646421771631,0.062187,40252.0,40251.0,0.01167222]
[1646421772185,0.057187,40252.0,40251.0,0.01167222]
[1646421772686,0.057187,40252.0,40247.0,0.001]
[1646421772687,0.7,40250.0,40247.0,0.001]
[1646421772888,0.00132367,40248.0,40247.0,0.001]
[1646421773185,0.10933667,40248.0,40232.0,0.001]
[1646421773388,0.01376489,40240.0,40232.0,0.001]
[1646421773586,0.06221657,40238.0,40232.0,0.001]
[1646421773791,0.06221657,40238.0,40215.0,2.0808]
[1646421773792,0.21916134,40233.0,40215.0,2.0808]
[1646421773984,0.0458,40232.0,40215.0,0.7267]
[1646421774185,0.062227,40230.0,40215.0,0.4829]
[1646421774385,0.0458,40229.0,40215.0,0.4829]
[1646421774585,0.062228,40227.0,40220.0,0.40804088]
[1646421774795,0.0458,40226.0,40215.0,0.001]
[1646421775486,0.124441,40225.0,40220.0,0.3116723]
[1646421775687,0.124441,40225.0,40222.0,0.14867633]
[1646421775688,0.0458,40224.0,40222.0,0.14867633]
[1646421775935,0.0458,40224.0,40223.0,0.28342812]
[1646421776335,0.06222,40226.0,40224.0,0.37139]
[1646421776731,0.06222,40226.0,40223.0,0.49076487]
[1646421777130,0.06222,40226.0,40225.0,0.14867633]
[1646421777330,0.002,40229.0,40225.0,0.14867633]
[1646421777530,0.002,40229.0,40223.0,0.49076487]
[1646421777531,0.002,40229.0,40228.0,0.14867633]
[1646421778131,0.062201,40231.0,40228.0,0.14867633]
[1646421778531,0.062201,40231.0,40226.0,0.00012436]
[1646421778934,0.062201,40231.0,40223.0,0.14867633]
[1646421779230,0.062201,40231.0,40226.0,0.00012436]
[1646421779682,0.124433,40229.0,40226.0,0.00012436]
[1646421780284,0.124433,40229.0,40215.0,0.001]
[1646421780285,0.3,40228.0,40215.0,0.001]
[1646421780487,0.124457,40226.0,40215.0,0.001]
[1646421780686,0.149457,40226.0,40219.0,0.00049755]
[1646421780886,0.0458,40225.0,40219.0,0.00049755]
[1646421781083,0.062228,40224.0,40219.0,0.00049755]
[1646421781284,0.0458,40223.0,40219.0,0.00049755]
[1646421781486,0.0458,40223.0,40215.0,0.001]
[1646421781686,0.0458,40223.0,40219.0,0.14867633]
[1646421781886,0.0458,40223.0,40215.0,0.001]
[1646421782085,0.4080322,40223.0,40215.0,0.001]
[1646421782286,0.06224,40220.0,40215.0,0.001]
[1646421782489,0.424482,40220.0,40215.0,0.001]
[1646421782686,0.0458,40219.0,40215.0,0.001]
[1646421782884,0.1458,40219.0,40215.0,0.001]
[1646421783089,0.39476585,40219.0,40215.0,0.001]
[1646421783286,0.00448824,40218.0,40215.0,0.001]
[1646421783542,0.0458,40217.0,40215.0,0.001]
[1646421784145,0.0458,40217.0,40216.0,0.35906148]
[1646421784340,0.0458,40217.0,40216.0,0.15067633]
[1646421784540,0.0458,40217.0,40215.0,0.001]
[1646421784744,0.186724,40219.0,40216.0,0.14567633]
[1646421785741,0.186724,40219.0,40215.0,0.00113936]
[1646421786143,0.186724,40219.0,40218.0,0.14567633]
[1646421786542,0.06224,40220.0,40218.0,0.14567633]
[1646421786747,0.124436,40224.0,40219.0,0.3]
[1646421786943,0.001,40220.0,40219.0,0.58360828]
[1646421787186,0.001,40220.0,40219.0,0.84411699]
[1646421788883,0.124419,40229.0,40219.0,0.84411699]
[1646421788884,0.062207,40227.0,40219.0,0.83537199]
[1646421789083,0.062207,40227.0,40226.0,0.21103589]
[1646421789285,0.062207,40227.0,40223.0,0.14567633]
[1646421789482,0.062207,40227.0,40219.0,0.22928461]
[1646421790285,0.062207,40227.0,40215.0,0.00116682]
[1646421790490,0.087207,40227.0,40215.0,0.00116682]
[1646421790684,0.0458,40226.0,40215.0,0.00116682]
[1646421790933,0.06222,40223.0,40215.0,0.00116682]
[1646421791130,0.06222,40223.0,40215.0,0.001]
[1646421791331,0.06222,40223.0,40219.0,0.31049023]
[1646421791735,0.06222,40223.0,40220.0,0.24540492]
[1646421792532,0.06222,40223.0,40222.0,0.21880563]
[1646421793133,0.06222,40223.0,40220.0,0.24540492]
[1646421793334,0.06222,40223.0,40220.0,0.24040492]
[1646421793536,0.06193742,40226.0,40221.0,0.37139]
[1646421793737,0.001865,40229.0,40221.0,0.37139]
[1646421793937,0.001865,40229.0,40221.0,0.57139]
[1646421794135,0.001865,40229.0,40228.0,0.48792048]
[1646421794683,0.02908,40231.0,40228.0,0.48106936]
[1646421795584,0.02908,40231.0,40229.0,0.18031263]
[1646421795790,0.02867289,40231.0,40228.0,0.27364739]
[1646421795988,0.02827289,40231.0,40228.0,0.27364739]
[1646421796787,0.02827289,40231.0,40228.0,0.26864739]
[1646421797789,0.02827289,40231.0,40225.0,0.002]
[1646421797990,0.062209,40230.0,40225.0,0.002]
[1646421798290,0.062209,40230.0,40219.0,0.05]
[1646421798537,0.062209,40230.0,40223.0,0.00012509]
[1646421798936,0.062209,40230.0,40224.0,0.249429]
[1646421799835,0.062209,40230.0,40223.0,0.00012509]
[1646421800738,0.062209,40230.0,40215.0,0.001]
[1646421800937,0.062223,40225.0,40223.0,0.00012509]
[1646421801941,0.124452,40229.0,40224.0,0.27706748]
[1646421801942,0.062205,40229.0,40224.0,0.27706748]
[1646421802188,0.15568789,40231.0,40224.0,0.27706748]
[1646421802189,0.03127289,40231.0,40224.0,0.27706748]
[1646421802380,0.02827289,40231.0,40224.0,0.27706748]
[1646421802683,0.02827289,40231.0,40227.0,0.26265885]
[1646421804383,0.062199,40232.0,40227.0,0.26265885]
[1646421805580,0.062199,40232.0,40224.0,0.28006748]
[1646421805581,0.062199,40232.0,40224.0,0.33006748]
[1646421806226,0.062199,40232.0,40224.0,0.27706748]
[1646421806628,0.062199,40232.0,40228.0,0.31305096]
[1646421807027,0.070944,40232.0,40228.0,0.31305096]
[1646421807227,0.062199,40232.0,40228.0,0.31305096]
[1646421807827,0.062199,40232.0,40231.0,0.25385241]
[1646421808330,0.025,40243.0,40231.0,0.25385241]
[1646421808928,0.025,40243.0,40236.0,0.28069483]
[1646421809330,0.124383,40243.0,40236.0,0.28069483]
[1646421810005,0.124383,40243.0,40238.0,0.16910048]
[1646421810205,0.124383,40243.0,40236.0,0.28069483]
[1646421810403,0.149383,40243.0,40236.0,0.28069483]
[1646421810601,0.025,40243.0,40236.0,0.28069483]
[1646421811808,0.126383,40244.0,40231.0,0.25385241]
[1646421812007,0.362188,40243.0,40225.0,0.7415]
[1646421812205,0.362188,40243.0,40226.0,0.05]
[1646421812406,0.124425,40236.0,40225.0,0.7415]
[1646421812610,0.124425,40236.0,40227.0,0.3]
[1646421812810,0.124425,40236.0,40229.0,0.31905144]
[1646421813007,0.124425,40236.0,40232.0,0.2852116]
[1646421813308,0.025,40243.0,40233.0,0.3]
[1646421814638,0.025,40243.0,40236.0,0.31761327]
[1646421815441,0.062188,40242.0,40236.0,0.31761327]
[1646421816843,0.062188,40242.0,40236.0,0.48303367]
[1646421817590,0.062188,40242.0,40237.0,0.3]
[1646421817794,0.1896,40245.0,40237.0,0.3]
[1646421817797,0.003,40245.0,40237.0,0.3]
[1646421818190,0.062184,40246.0,40244.0,0.24416512]
[1646421818594,0.062184,40246.0,40239.0,0.3]
[1646421818791,0.062184,40246.0,40233.0,0.35]
[1646421818991,0.062184,40246.0,40233.0,0.45]
[1646421819490,0.062184,40246.0,40237.0,0.28853599]
[1646421819691,0.062184,40246.0,40233.0,0.45]
[1646421819993,0.062184,40246.0,40226.0,0.7532]
[1646421819994,0.06220524,40244.0,40226.0,0.7532]
[1646421820203,0.062208,40240.0,40226.0,1.0532]
[1646421820394,0.062208,40240.0,40225.0,0.7346]
[1646421820590,0.062208,40240.0,40230.0,0.17025276]
[1646421820791,0.062208,40240.0,40231.0,0.20693048]
[1646421821437,0.062208,40240.0,40229.0,0.23288436]
[1646421821634,0.26767797,40240.0,40229.0,0.39596075]
[1646421821835,0.26767797,40240.0,40229.0,0.23288436]
[1646421822035,0.26767797,40240.0,40226.0,0.3]
[1646421822436,0.26767797,40240.0,40228.0,0.2557993]
[1646421822635,0.26767797,40240.0,40223.0,0.30013958]
[1646421823042,0.26767797,40240.0,40223.0,0.59094901]
[1646421823438,0.26767797,40240.0,40223.0,0.59080943]
[1646421823637,0.26767797,40240.0,40223.0,0.59094901]
[1646421823836,0.26767797,40240.0,40224.0,0.16542587]
[1646421824038,0.26767797,40240.0,40223.0,0.59094901]
[1646421824237,0.062208,40240.0,40223.0,0.59094901]
[1646421824686,0.062208,40240.0,40230.0,0.32581264]
[1646421825187,0.062208,40240.0,40233.0,0.24696844]
[1646421825787,0.062208,40240.0,40231.0,0.3]
[1646421825988,0.124415,40241.0,40230.0,0.32581264]
[1646421826193,0.24356459,40248.0,40238.0,0.15]
[1646421826194,0.11916759,40248.0,40238.0,0.15]
[1646421826391,0.7767,40255.0,40240.0,0.15]
[1646421826392,0.11916759,40250.0,40240.0,0.15]
[1646421826593,0.11916759,40256.0,40242.0,0.02455]
[1646421826791,0.00062202,40259.0,40258.0,0.21649588]
[1646421827189,0.26730817,40264.0,40258.0,0.58788588]
[1646421827190,0.11916759,40264.0,40258.0,0.58788588]
[1646421827392,0.00047397,40267.0,40259.0,0.3]
[1646421827592,0.062155,40265.0,40255.0,0.3]
[1646421827792,0.062155,40265.0,40250.0,0.3]
[1646421827991,0.087155,40265.0,40250.0,0.3]
[1646421828196,0.01483651,40264.0,40249.0,0.5]
[1646421828440,0.20518146,40260.0,40249.0,0.5]
[1646421828643,0.025,40260.0,40249.0,0.5]
[1646421828941,0.062176,40260.0,40251.0,0.30264342]
[1646421829145,0.087176,40260.0,40251.0,0.30264342]
[1646421829444,0.087176,40260.0,40252.0,0.67139]
[1646421829643,0.125,40266.0,40251.0,0.30264342]
[1646421829844,0.00060779,40264.0,40251.0,0.30264342]
[1646421830241,0.00060779,40264.0,40258.0,0.29297053]
[1646421830442,0.00060779,40264.0,40248.0,0.02455]
[1646421830443,0.06276579,40264.0,40248.0,0.02455]
[1646421830644,0.16035102,40263.0,40246.0,0.55]
[1646421831040,0.16035102,40263.0,40247.0,0.006]
[1646421831243,0.18535102,40263.0,40247.0,0.006]
[1646421831443,0.3,40262.0,40247.0,0.006]
[1646421831641,0.3,40262.0,40249.0,0.16278314]
[1646421831842,0.3,40262.0,40247.0,0.006]
[1646421831843,0.062175,40261.0,40247.0,0.006]
[1646421832045,0.062164,40260.0,40247.0,0.006]
[1646421832284,0.062164,40260.0,40246.0,0.5]
[1646421832485,0.062164,40260.0,40250.0,0.21731927]
[1646421833188,0.025,40263.0,40254.0,0.37139]
[1646421833389,0.025,40263.0,40262.0,0.37139]
[1646421833587,0.00061103,40263.0,40262.0,0.37139]
[1646421833786,0.00061103,40263.0,40262.0,0.53637654]
[1646421833986,0.00061103,40263.0,40262.0,0.7644296]
[1646421834186,0.00061103,40263.0,40262.0,1.0317954]
[1646421834388,0.025,40276.0,40263.0,0.02455]
[1646421834587,0.025,40276.0,40264.0,0.39594]
[1646421834788,0.00047396,40271.0,40264.0,0.39594]
[1646421834985,0.00047396,40271.0,40270.0,0.18478794]
[1646421835185,0.00047396,40271.0,40270.0,0.37139]
[1646421835586,0.41,40278.0,40271.0,0.37139]
[1646421835792,0.41,40278.0,40272.0,0.37139]
[1646421836240,0.2764,40278.0,40276.0,0.37139]